[Event "Israel National League 2024"]
[Site "Israel"]
[Date "2024.03.01"]
[Round "9.25"]
[White "Emanuel, Yahav"]
[Black "Moiseenko, Alexander"]
[Result "1/2-1/2"]
[ECO "A46"]
[WhiteElo "2333"]
[BlackElo "2570"]
[Annotator "RC"]
[PlyCount "175"]
[EventDate "2024.01.07"]
[EventType "team-tourn"]
[EventCountry "ISR"]
[SourceTitle "playchess.com"]
[Source "ChessBase"]
[SourceQuality "1"]
[TimeControl "40/5400+30:1800+30"]

1. d4 {[%emt 0:00:17]} Nf6 {[%emt 0:00:40]} 2. Nf3 {[%emt 0:00:09]} e6 {[%emt 0:00:50]} 3. Bf4 {[%emt 0:03:50]} Be7 {[%emt 0:00:50]} 4. h3 {[%emt 0:02:24]} c5 {[%emt 0:07:31]} 5. e3 {[%emt 0:02:07]} O-O {[%emt 0:04:55]} 6. Nbd2 {[%emt 0:03:38]} cxd4 {[%emt 0:04:14]} 7. exd4 {[%emt 0:00:03]} b6 {[%emt 0:00:20]} 8. c3 {[%emt 0:08:45]} d6 {[%emt 0:02:59]} 9. Bb5 {[%emt 0:08:07]} Ba6 {[%emt 0:12:08]} 10. a4 {[%emt 0:03:18]} Nd5 {[%emt 0:05:42]} 11. Bh2 {[%emt 0:03:14]} Bxb5 {[%emt 0:05:53]} 12. axb5 {[%emt 0:00:02]} Nc7 {[%emt 0:00:06]} 13. c4 {[%emt 0:06:30]} a6 {[%emt 0:00:54]} 14. bxa6 {[%emt 0:00:10]} Nbxa6 {[%emt 0:06:47]} 15. O-O {[%emt 0:05:29]} b5 {[%emt 0:03:20]} 16. b3 {[%emt 0:02:23]} Nb4 {[%emt 0:00:57]} 17. Qe2 {[%emt 0:01:19]} h6 {[%emt 0:03:58]} 18. Rxa8 {[%emt 0:04:59]} Nxa8 {[%emt 0:01:18]} 19. Ra1 {[%emt 0:02:09]} Nc7 {[%emt 0:06:48]} 20. Nb1 {[%emt 0:09:28]} Qd7 {[%emt 0:04:59]} 21. Qd2 {[%emt 0:03:44]} Nca6 {[%emt 0:00:58]} 22. Bf4 {[%emt 0:12:16]} bxc4 {[%emt 0:03:13]} 23. bxc4 {[%emt 0:00:05]} Rc8 {[%emt 0:00:14]} 24. Na3 {[%emt 0:06:11]} Bf8 {[%emt 0:01:57]} 25. Rc1 {[%emt 0:02:35]} f6 {[%emt 0:15:51]} 26. Qd1 {[%emt 0:03:33]} Qe8 {[%emt 0:01:04]} 27. Qb3 {[%emt 0:01:40]} Kh8 {[%emt 0:00:45]} 28. Bd2 {[%emt 0:01:22]} Rb8 {[%emt 0:00:20]} 29. Bxb4 {[%emt 0:03:22]} Nxb4 {[%emt 0:01:26]} 30. Qe3 {[%emt 0:00:45]} e5 {[%emt 0:00:46]} 31. Nb5 {[%emt 0:00:29]} e4 {[%emt 0:01:08]} 32. Nd2 {[%emt 0:00:47]} f5 {[%emt 0:00:09]} 33. f3 {[%emt 0:00:42]} d5 {[%emt 0:00:28]} 34. fxe4 {[%emt 0:00:33]} fxe4 {[%emt 0:01:47]} 35. Nc3 {[%emt 0:00:21]} Be7 {[%emt 0:01:27]} 36. cxd5 {[%emt 0:00:42]} Bg5 {[%emt 0:00:08]} 37. Qe2 {[%emt 0:00:20]} Nd3 {[%emt 0:01:26]} 38. Rf1 {[%emt 0:00:57]} Rb2 {[%emt 0:00:35]} 39. Qxe4 {[%emt 0:00:28]} Be3+ {[%emt 0:00:33]} 40. Kh1 {[%emt 0:00:35]} Qxe4 {[%emt 0:00:26]} 41. Ndxe4 {[%emt 0:08:31]} Bxd4 {[%emt 0:00:34]} 42. Rd1 {[%emt 0:07:31]} Bxc3 {[%emt 0:03:10]} 43. Rxd3 {[%emt 0:00:05]} Rb1+ {[%emt 0:02:22]} 44. Kh2 {[%emt 0:00:01]} Be5+ {[%emt 0:00:05]} 45. g3 {[%emt 0:00:26]} Rb4 {[%emt 0:01:15]} 46. Nd2 {[%emt 0:03:40]} Bd6 {[%emt 0:03:12]} 47. Kg2 {[%emt 0:00:15]} Kg8 {[%emt 0:07:20]} 48. Kf3 {[%emt 0:03:05]} Kf7 {[%emt 0:03:10]} 49. Ne4 {[%emt 0:00:34]} Ke7 {[%emt 0:08:40]} 50. Ra3 {[%emt 0:00:52]} Bb8 {[%emt 0:00:16]} 51. Ra8 {[%emt 0:06:19]} h5 {[%emt 0:00:59]} 52. Ra6 {[%emt 0:01:35]} Rb3+ {[%emt 0:01:04]} 53. Kf2 {[%emt 0:00:10]} Rb2+ {[%emt 0:02:13]} 54. Kf3 {[%emt 0:00:59]} Rb3+ {[%emt 0:00:03]} 55. Kf2 {[%emt 0:00:48]} Rb2+ {[%emt 0:00:05]} 56. Ke3 {[%emt 0:00:31]} Rb3+ {[%emt 0:00:27]} 57. Kd4 {[%emt 0:00:30]} Rb4+ {[%emt 0:01:17]} 58. Kd3 {[%emt 0:00:26]} Bxg3 {[%emt 0:00:33]} 59. Rg6 {[%emt 0:03:00]} Bh2 {[%emt 0:02:09]} 60. Rxg7+ {[%emt 0:00:38]} Kf8 {[%emt 0:00:02]} 61. Rg5 {[%emt 0:00:28]} Rb3+ {[%emt 0:00:16]} 62. Nc3 {[%emt 0:00:25]} h4 {[%emt 0:00:24]} 63. Kc4 {[%emt 0:00:27]} Ra3 {[%emt 0:00:34]} 64. Rh5 {[%emt 0:00:45]} Bg3 {[%emt 0:00:31]} 65. Rf5+ {[%emt 0:00:33]} Ke7 {[%emt 0:00:31]} 66. Ne4 {[%emt 0:00:20]} Bh2 {[%emt 0:01:47]} 67. Ng5 {[%emt 0:00:28]} Ke8 {[%emt 0:00:35]} 68. Rf3 {[%emt 0:00:32]} Ra1 {[%emt 0:00:27]} 69. Kd4 {[%emt 0:00:37]} Ra4+ {[%emt 0:00:32]} 70. Kc5 {[%emt 0:00:28]} Ra5+ {[%emt 0:00:16]} 71. Kc6 {[%emt 0:00:05]} Ra6+ {[%emt 0:00:05]} 72. Kb5 {[%emt 0:00:29]} Ra1 {[%emt 0:00:20]} 73. Kc4 {[%emt 0:01:00]} Ra4+ {[%emt 0:01:09]} 74. Kb5 {[%emt 0:00:02]} Ra1 {[%emt 0:00:01]} 75. Ne4 {[%emt 0:00:28]} Ke7 {[%emt 0:00:37]} 76. Rd3 {[%emt 0:00:32]} Bd6 {[%emt 0:00:56]} 77. Kc6 {[%emt 0:00:12]} Ra6+ {[%emt 0:00:14]} 78. Kb5 {[%emt 0:00:36]} Ra1 {[%emt 0:00:09]} 79. Re3 {[%emt 0:01:03]} Bf4 {[%emt 0:00:34]} 80. Rf3 {[%emt 0:00:19]} Bd6 {[%emt 0:00:43]} 81. Re3 {[%emt 0:00:24]} Bf4 {[%emt 0:00:02]} 82. Rf3 {[%emt 0:00:47]} Bd6 {[%emt 0:00:02]} 83. Nd2 {[%emt 0:00:25]} Rd1 {[%emt 0:00:38]} 84. Rf2 {[%emt 0:00:27]} Rh1 {[%emt 0:00:40]} 85. Rf3 {[%emt 0:00:11]} Rd1 {[%emt 0:00:07]} 86. Rf2 {[%emt 0:00:37]} Rh1 {[%emt 0:00:05]} 87. Rf3 {[%emt 0:00:46]} Rd1 {[%emt 0:00:05]} 88. Rf2 {[%emt 0:00:34]} 1/2-1/2

[Event "Israel National League 2024"]
[Site "Israel"]
[Date "2024.03.01"]
[Round "9.26"]
[White "Sutovsky, Emil"]
[Black "Tifferet, Shakked"]
[Result "1-0"]
[ECO "B12"]
[WhiteElo "2597"]
[BlackElo "2334"]
[Annotator "TA"]
[PlyCount "143"]
[EventDate "2024.01.07"]
[EventType "team-tourn"]
[EventCountry "ISR"]
[SourceTitle "playchess.com"]
[Source "ChessBase"]
[SourceQuality "1"]
[TimeControl "40/5400+30:1800+30"]

{[%evp 45,143,107,119,117,119,129,122,94,102,99,105,102,140,3,101,106,98,109,98,94,108,113,97,69,112,24,119,103,110,108,113,103,125,100,167,91,72,91,165,156,82,102,201,128,119,116,124,67,128,147,153,11,111,93,97,105,96,96,80,74,172,166,197,197,184,136,927,744,1383,1315,1650,3589,1800,1437,29966,29967,29967,29968,29966,29968,29970,29971,29969,29971,29973,29974,29974,29975,29975,29976,29976,29977,29977,29978,29977,29978,29980,29980,29981,29982]} 1. e4 {[%emt 0:00:53]} c6 {[%emt 0:00:13]} 2. d4 {[%emt 0:00:06]} d5 {[%emt 0:00:07]} 3. e5 {[%emt 0:00:08]} Bf5 {[%emt 0:00:11]} 4. h4 {[%emt 0:00:15]} h5 {[%emt 0:00:27]} 5. Bd3 {[%emt 0:00:36]} Bxd3 {[%emt 0:01:15]} 6. Qxd3 {[%emt 0:00:03]} Qa5+ {[%emt 0:01:50]} 7. Nd2 {[%emt 0:00:44]} e6 {[%emt 0:02:51]} 8. Ngf3 {[%emt 0:00:30]} Ne7 {[%emt 0:13:56]} 9. O-O {[%emt 0:00:18]} Nf5 {[%emt 0:00:49]} 10. Nb3 {[%emt 0:00:07]} Qa6 {[%emt 0:06:59]} 11. Qc3 {[%emt 0:00:08]} Nd7 {[%emt 0:04:41]} 12. Bg5 {[%emt 0:01:55]} Rc8 {[%emt 0:05:00]} 13. Qd2 {[%emt 0:01:43]} c5 {[%emt 0:05:36]} 14. c3 {[%emt 0:05:35]} Be7 {[%emt 0:12:17]} 15. Bxe7 {[%emt 0:02:34]} Nxe7 {[%emt 0:02:26]} 16. Nxc5 {[%emt 0:18:54]} Nxc5 {[%emt 0:00:07]} 17. dxc5 {[%emt 0:00:02]} Rxc5 {[%emt 0:00:08]} 18. Qg5 {[%emt 0:00:33]} Qd3 {[%emt 0:06:22]} 19. Qxg7 {[%emt 0:08:25]} Rg8 {[%emt 0:01:40]} 20. Qf6 {[%emt 0:00:13]} Rc4 {[%emt 0:11:25]} 21. Rad1 {[%emt 0:18:22]} Qg6 {[%emt 0:05:30]} 22. g3 {[%emt 0:03:01]} Qxf6 {[%emt 0:02:38]} 23. exf6 {[%emt 0:01:57]} Nf5 {[%emt 0:02:56]} 24. Rfe1 {[%emt 0:01:36]} Re4 {[%emt 0:02:10]} 25. Rxe4 $1 {[%emt 0:12:58]} dxe4 {[%emt 0:00:02]} 26. Ng5 {[%emt 0:06:38]} e3 {[%emt 0:00:11]} 27. Kf1 {[%emt 0:08:39]} Rg6 {[%emt 0:03:08]} 28. Ne4 {[%emt 0:00:03]} Rg4 {[%emt 0:00:34]} 29. Nc5 {[%emt 0:01:03]} (29. f3 $1 $16 {[%cal Rf3g4]} Rg6 (29... Nxg3+ $2 30. Kg2 $18) 30. Ke1 (30. Ke2 Nxg3+ 31. Kxe3 Nxe4 $16)) 29... exf2 {[%emt 0:00:40]} (29... Rg6 $1 $11 {keeps the balance.}) 30. Kxf2 $16 {[%emt 0:00:13]} Rg6 {[%emt 0:08:38]} (30... Nxg3 $2 {loses.} 31. Kf3 Nf5 32. Nxb7 Nxh4+ (32... Rxh4 33. Rd8#) 33. Ke3 Ng2+ (33... Nf5+ $2 34. Ke2 $18) 34. Kf2 Rf4+ 35. Kxg2 $18) 31. Ne4 {[%emt 0:00:02]} (31. Nxb7 $6 Rxf6 32. Nc5 Nxh4+ 33. Ke2 Nf5 $11) 31... Nh6 {[%emt 0:00:28]} 32. Nd6+ {[%emt 0:00:15]} Kf8 {[%emt 0:00:06]} 33. Nf5 {[%emt 0:04:12]} Ng4+ {[%emt 0:01:05]} 34. Kg2 {[%emt 0:00:28]} Nxf6 {[%emt 0:00:29]} 35. Rd8+ {[%emt 0:00:03]} Ne8 {[%emt 0:00:04]} 36. Nd6 {[%emt 0:00:06]} Ke7 {[%emt 0:00:10]} 37. Rxe8+ {[%emt 0:00:24]} ({Don't play} 37. Nxb7 f5 $14) 37... Kxd6 {[%emt 0:00:03]} 38. Rh8 {[%emt 0:00:03]} Ke5 {[%emt 0:01:43]} 39. Rxh5+ {[%emt 0:03:21]} Ke4 {[%emt 0:00:02]} 40. Rb5 {[%emt 0:01:26]} (40. Ra5 $18 a6 41. Ra4+ Ke3 42. Ra5) 40... b6 $16 {[%emt 0:01:00]} 41. h5 {[%emt 0:30:49]} Rg8 {[%emt 0:02:45]} (41... Rh6 $16 {keeps fighting.}) 42. h6 {[%emt 0:00:00]} e5 {[%emt 0:03:57]} 43. Rb4+ {[%emt 0:00:00]} Kd3 {[%emt 0:10:36]} (43... Kf5 $16 {was worth a try.} 44. Rh4 Kg5) 44. Kf3 {[%emt 0:00:00]} Rh8 {[%emt 0:07:35]} 45. Rh4 {[%emt 0:00:00]} e4+ {[%emt 0:00:34]} 46. Rxe4 {[%emt 0:00:00]} (46. Kf2 $16) 46... Rxh6 $14 {[%emt 0:00:04]} 47. Rf4 $1 {[%emt 0:00:00]} Rh7 {[%emt 0:04:22]} 48. Rd4+ {[%emt 0:00:00]} Kc2 {[%emt 0:00:06]} 49. Rh4 $1 {[%emt 0:00:00]} Rg7 {[%emt 0:00:21]} ({But not} 49... Rxh4 $2 50. gxh4 Kxb2 51. h5 $18) 50. Rh2+ {[%emt 0:00:00]} Kd3 {[%emt 0:01:33]} 51. g4 {[%emt 0:00:00]} Rg6 {[%emt 0:03:33]} 52. Kf4 {[%emt 0:00:00]} a5 {[%emt 0:00:34]} (52... Rf6+ $16 53. Ke5 Rf1) 53. Kf5 $18 {[%emt 0:00:00]} Rc6 {[%emt 0:00:24]} 54. g5 {[%emt 0:00:00]} a4 {[%emt 0:00:24] [#]} 55. Rh4 {[%emt 0:00:00]} (55. Rf2 $1 $18) 55... Kc2 $2 {[%emt 0:00:41][%mdl 8192]} (55... b5 $16) 56. Rxa4 $18 {[%emt 0:00:00]} Kxb2 {[%emt 0:00:03]} 57. c4 {[%emt 0:00:00]} Rc7 {[%emt 0:00:58]} 58. Rb4+ {[%emt 0:00:41]} Kc3 {[%emt 0:00:30]} 59. Rxb6 {[%emt 0:00:26]} Kxc4 {[%emt 0:00:02]} 60. Rd6 {[%emt 0:00:51]} Ra7 {[%emt 0:00:56]} 61. Kf6 {[%emt 0:00:17]} Kc5 {[%emt 0:00:31]} 62. Rd8 {[%emt 0:00:19]} Kc6 {[%emt 0:00:26]} 63. Rf8 {[%emt 0:02:15]} Kd6 {[%emt 0:00:12]} 64. Rxf7 {[%emt 0:00:40]} Rxa2 {[%emt 0:00:02]} 65. g6 {[%emt 0:00:06]} Rf2+ {[%emt 0:01:09]} 66. Kg7 {[%emt 0:00:04]} Rg2 {[%emt 0:00:10]} 67. Rf1 {[%emt 0:00:31]} Ke6 {[%emt 0:00:19]} 68. Kh7 {[%emt 0:00:16]} Ke7 {[%emt 0:00:48]} 69. g7 {[%emt 0:00:08]} Rh2+ {[%emt 0:00:23]} 70. Kg8 {[%emt 0:00:02]} Rg2 {[%emt 0:00:43]} 71. Re1+ {[%emt 0:00:22]} Kf6 {[%emt 0:00:07] [#]} 72. Kf8 $1 {[%emt 0:00:14]} 1-0

[Event "Israel National League 2024"]
[Site "Israel"]
[Date "2024.03.01"]
[Round "9.27"]
[White "Lev, Ronen"]
[Black "Smirin, Ilia"]
[Result "1/2-1/2"]
[ECO "E62"]
[WhiteElo "2341"]
[BlackElo "2582"]
[Annotator "TA"]
[PlyCount "56"]
[EventDate "2024.01.07"]
[EventType "team-tourn"]
[EventCountry "ISR"]
[SourceTitle "playchess.com"]
[Source "ChessBase"]
[SourceQuality "1"]
[TimeControl "40/5400+30:1800+30"]

{[%evp 20,56,18,16,16,28,79,48,49,59,70,65,70,0,0,-7,0,-58,-67,-47,0,0,0,0,0,0,0,0,0,0,0,0,0,0,0,0,0,0,93]} 1. Nf3 {[%emt 0:00:06]} Nf6 {[%emt 0:02:27]} 2. c4 {[%emt 0:00:11]} g6 {[%emt 0:00:17]} 3. g3 {[%emt 0:00:08]} Bg7 {[%emt 0:00:17]} 4. Bg2 {[%emt 0:00:02]} O-O {[%emt 0:01:13]} 5. O-O {[%emt 0:00:02]} d6 {[%emt 0:00:17]} 6. Nc3 {[%emt 0:00:20]} Bd7 {[%emt 0:00:59]} 7. d4 {[%emt 0:01:56]} Re8 {[%emt 0:00:29]} 8. e4 {[%emt 0:02:26]} e5 {[%emt 0:00:27]} 9. h3 {[%emt 0:00:56]} exd4 {[%emt 0:04:21]} 10. Nxd4 {[%emt 0:00:09][%cal Bf3d4,Bd4e2,Be2f4][%mdl 32]} Nc6 {[%emt 0:00:03]} 11. Be3 {[%emt 0:00:43]} Qc8 {[%emt 0:02:23]} 12. Kh2 {[%emt 0:03:18]} Ne5 {[%emt 0:02:31]} (12... Nxd4 $11 13. Bxd4 c5) 13. b3 {[%emt 0:00:51]} a6 {[%emt 0:00:11] White is slightly better.} 14. Rc1 {[%emt 0:04:38]} c5 {[%emt 0:10:57]} 15. Nde2 {[%emt 0:02:29][%cal Oe3g5]} b5 {[%emt 0:00:06]} 16. cxb5 {[%emt 0:11:09]} ({White should try} 16. Qxd6 $14 bxc4 17. bxc4 (17. Bxc5 Nd3 $14) (17. Qxc5 Qxc5 18. Bxc5 Nd3 $15)) 16... axb5 $11 {[%emt 0:01:09] ...b4 is the strong threat.} 17. Qxd6 {[%emt 0:00:56]} b4 {[%emt 0:08:49]} 18. Nd5 {[%emt 0:03:01]} (18. Na4 $1 $11) 18... Nxd5 $15 {[%emt 0:01:06]} 19. Qxd5 {[%emt 0:02:18]} Qa6 {[%emt 0:09:28]} (19... c4 $1 $15) 20. Nf4 $11 {[%emt 0:02:15] The position is equal.} Bb5 {[%emt 0:05:26]} 21. Rfd1 $36 {[%emt 0:06:04][%mdl 2048] White has the initiative.} c4 {[%emt 0:02:59]} 22. bxc4 {[%emt 0:01:50]} Nxc4 {[%emt 0:01:00]} 23. Bc5 {[%emt 0:04:30]} Re5 {[%emt 0:07:53]} 24. Qd4 {[%emt 0:05:10]} Ree8 $1 {[%emt 0:00:28]} 25. Qd5 {[%emt 0:06:13]} Re5 {[%emt 0:20:06]} 26. Qd4 {[%emt 0:00:23] Nd5 would now be deadly.} Ree8 $1 {[%emt 0:00:20]} 27. e5 {[%emt 0:41:56]} Bxe5 {[%emt 0:18:18]} 28. Qd5 {[%emt 0:00:30]} Bc3 {[%emt 0:00:30] Weighted Error Value: White=0.11 (very precise) /Black=0.09 (flawless) .  Mistake:       	White=2     	Black=3      Inaccurate:     	White=1     	---        OK:         	White=11    	Black=5      Best:        	---       	Black=2      Strong:       	---       	Black=2} (28... Bxf4 $11 29. gxf4 Nb2) 1/2-1/2

[Event "Israel National League 2024"]
[Site "Israel"]
[Date "2024.03.01"]
[Round "9.28"]
[White "Globus, Or"]
[Black "Ben-Menachem, Itzhak"]
[Result "1-0"]
[ECO "A16"]
[WhiteElo "2434"]
[BlackElo "2266"]
[Annotator "TA"]
[PlyCount "89"]
[EventDate "2024.01.07"]
[EventType "team-tourn"]
[EventCountry "ISR"]
[SourceTitle "playchess.com"]
[Source "ChessBase"]
[SourceQuality "1"]
[TimeControl "40/5400+30:1800+30"]

{[%evp 9,89,6,25,-20,23,12,16,19,55,54,83,82,67,64,105,93,134,116,125,93,100,95,100,67,106,113,168,158,186,182,191,184,291,231,233,192,189,182,183,196,187,187,258,256,264,228,297,264,258,267,268,169,362,352,344,276,402,399,440,432,591,579,964,700,850,907,907,891,875,839,2116,2908,2821,2767,2214,2110,29989,29990,29997,29998,29998,29999]} 1. c4 {[%emt 0:02:29]} Nf6 {[%emt 0:01:57]} 2. Nc3 {[%emt 0:00:59]} c6 {[%emt 0:02:22]} 3. e4 {[%emt 0:13:43][%cal Be2e4,Be4e5][%mdl 32]} d5 {[%emt 0:00:07]} 4. cxd5 {[%emt 0:04:02]} cxd5 {[%emt 0:01:27]} 5. e5 {[%emt 0:02:28]} d4 {[%emt 0:00:36]} 6. Qa4+ {[%emt 0:09:03]} (6. exf6 {simplifies} dxc3 7. dxc3 Qxd1+ 8. Kxd1 exf6 9. Be3) 6... Nc6 {[%emt 0:21:26]} 7. exf6 {[%emt 0:00:49]} dxc3 {[%emt 0:02:37]} 8. dxc3 {[%emt 0:01:46] The position is equal.} gxf6 {[%emt 0:00:12]} 9. Be3 {[%emt 0:02:00]} Rg8 {[%emt 0:07:34]} 10. Nf3 {[%emt 0:07:42]} e5 {[%emt 0:29:15]} 11. g3 {[%emt 0:07:30]} Bd7 {[%emt 0:05:40][%cal Oc6d4]} 12. Qc2 {[%emt 0:08:07] White is more active.} h6 {[%emt 0:00:08]} 13. Nh4 {[%emt 0:06:06]} Qc7 {[%emt 0:02:43][%cal Of6f5]} 14. Bd3 {[%emt 0:02:49]} O-O-O {[%emt 0:02:25]} 15. O-O-O {[%emt 0:02:21]} Be6 {[%emt 0:04:11]} 16. Bf5 {[%emt 0:01:47]} Rxd1+ {[%emt 0:00:24]} 17. Rxd1 {[%emt 0:00:27]} h5 {[%emt 0:03:06]} (17... Kb8 $16) 18. Qe2 $18 {[%emt 0:03:58]} Bxf5 {[%emt 0:03:02]} 19. Nxf5 {[%emt 0:00:05]} Rh8 {[%emt 0:00:31]} 20. Qc4 {[%emt 0:01:31]} a6 {[%emt 0:01:03]} (20... Kb8 $142 21. Qh4 Be7) 21. Kb1 {[%emt 0:01:22]} Kb8 {[%emt 0:03:07]} 22. f3 {[%emt 0:06:48][%cal Bf2f3,Bf3g4][%mdl 32]} Qc8 {[%emt 0:00:23]} 23. Qe4 {[%emt 0:01:20] Black is weak on the dark squares} Qe6 {[%emt 0:07:44]} 24. h4 {[%emt 0:02:41][%cal Bh2h4,Bh4h5,Bh5h6][%mdl 32]} Kc7 {[%emt 0:00:00]} 25. g4 {[%emt 0:00:45]} hxg4 {[%emt 0:00:00]} (25... Nb8 {was called for.} 26. Rd5 Nd7) 26. fxg4 {[%emt 0:00:05]} Na5 {[%emt 0:00:00]} 27. Rd5 {[%emt 0:04:35]} Nc6 {[%emt 0:00:00]} 28. h5 {[%emt 0:01:00]} Rg8 {[%emt 0:00:00][%cal Og8g4]} 29. Rd3 {[%emt 0:01:12]} Na5 {[%emt 0:00:00]} 30. b3 {[%emt 0:00:51] Prevents Qc4. Rd2 would now be deadly.} Nc6 $2 {[%emt 0:01:39] [#]} (30... Qc6 31. Qxc6+ (31. Qd5 Qxd5 32. Rxd5 Nc6 $11) 31... Nxc6) 31. Kb2 {[%emt 0:00:22]} Nb8 {[%emt 0:00:32]} 32. h6 {[%emt 0:01:34]} Nc6 {[%emt 0:02:19]} (32... Qc6 {was worth a try.} 33. Rd5 Nd7) 33. Rd5 {[%emt 0:01:45]} Nb8 {[%emt 0:00:00]} 34. b4 {[%emt 0:00:42]} Nc6 {[%emt 0:00:00]} 35. a4 {[%emt 0:00:41][%cal Ba2a4,Ba4b5][%mdl 32]} Nb8 {[%emt 0:00:11]} 36. b5 {[%emt 0:01:28]} axb5 {[%emt 0:00:21]} 37. axb5 {[%emt 0:01:06]} Nd7 {[%emt 0:00:32]} 38. Qc4+ {[%emt 0:00:47]} Kb8 {[%emt 0:00:45]} 39. Qd3 {[%emt 0:00:41] [#] Threatens to win with h7.} Nb6 {[%emt 0:00:48]} 40. Rd8+ {[%emt 0:00:21]} Kc7 {[%emt 0:00:12][%cal Bb8c7,Bc7b6,Bb6a7][%mdl 32]} 41. Bxb6+ {[%emt 0:11:55]} Kxb6 {[%emt 0:02:06]} 42. Ne3 {[%emt 0:02:17] Intending Nd5+ and mate.} e4 {[%emt 0:06:50]} 43. Nd5+ {[%emt 0:07:44] White mates.} Ka7 {[%emt 0:01:55]} 44. Qd4+ {[%emt 0:00:22]} b6 {[%emt 0:00:15]} 45. Qa4+ {[%emt 0:00:12] Black got outplayed after the opening.   Weighted Error Value: White=0.32/Black=0.56.  Mistake:       	---       	Black=5      Inaccurate:     	White=2     	Black=9      OK:         	White=14    	Black=9} 1-0

[Event "Israel National League 2024"]
[Site "Israel"]
[Date "2024.03.01"]
[Round "9.29"]
[White "Klar, Nir"]
[Black "Alekseev, Evgeny"]
[Result "0-1"]
[ECO "B48"]
[WhiteElo "2157"]
[BlackElo "2563"]
[Annotator "TA"]
[PlyCount "66"]
[EventDate "2024.01.07"]
[EventType "team-tourn"]
[EventCountry "ISR"]
[SourceTitle "playchess.com"]
[Source "ChessBase"]
[SourceQuality "1"]
[TimeControl "40/5400+30:1800+30"]

{[%evp 17,66,0,0,0,0,0,43,33,55,33,44,33,40,40,48,-6,0,0,0,14,16,17,28,3,22,24,23,-49,-49,-49,-52,-72,-72,-81,-83,-121,-124,-147,-142,-216,-239,-226,-210,-331,-339,-462,-446,-685,-662,-654,-625]} 1. e4 {[%emt 0:00:03]} c5 {[%emt 0:01:34]} 2. Nf3 {[%emt 0:00:14]} e6 {[%emt 0:00:59]} 3. d4 {[%emt 0:00:07]} cxd4 {[%emt 0:00:08]} 4. Nxd4 {[%emt 0:00:04]} Nc6 {[%emt 0:00:23]} 5. Nc3 {[%emt 0:00:05]} a6 {[%emt 0:00:15]} 6. Be3 {[%emt 0:00:05]} Nf6 {[%emt 0:01:02]} 7. Bd3 {[%emt 0:02:18]} Qc7 {[%emt 0:02:00]} 8. O-O {[%emt 0:00:12]} Ne5 {[%emt 0:02:19]} 9. h3 {[%emt 0:01:54]} Bc5 {[%emt 0:02:44]} 10. Qd2 {[%emt 0:00:33]} d6 {[%emt 0:02:35]} 11. f4 {[%emt 0:00:13]} Ned7 {[%emt 0:18:17]} 12. Rab1 {[%emt 0:02:45] White is slightly better.} O-O {[%emt 0:08:46]} 13. b4 $1 {[%emt 0:00:45]} Ba7 {[%emt 0:04:46]} 14. a4 {[%emt 0:00:06]} Rd8 {[%emt 0:07:11]} 15. Rbe1 {[%emt 0:02:30]} Nf8 {[%emt 0:05:12]} 16. g4 {[%emt 0:07:41]} ({White should try} 16. e5 $14 Ne8 (16... dxe5 17. fxe5 Nd5 18. Nxd5 $16) 17. Nf3) 16... Bd7 {[%emt 0:07:23]} 17. Nde2 {[%emt 0:20:41]} Bxe3+ {[%emt 0:05:32]} 18. Qxe3 {[%emt 0:00:27]} Be8 {[%emt 0:02:55]} 19. g5 {[%emt 0:14:21]} N6d7 {[%emt 0:00:59]} 20. f5 {[%emt 0:01:24]} Qb6 {[%emt 0:08:05]} 21. Qxb6 {[%emt 0:44:32]} Nxb6 {[%emt 0:00:17]} 22. b5 {[%emt 0:00:00]} (22. a5 $11 Nbd7 23. Na4) 22... a5 $15 {[%emt 0:04:10]} 23. Kf2 {[%emt 0:00:00]} Nfd7 {[%emt 0:02:19]} 24. Ke3 {[%emt 0:00:00]} Rdc8 {[%emt 0:05:24]} 25. Kd2 {[%emt 0:00:00]} Ne5 {[%emt 0:00:47]} 26. Nf4 {[%emt 0:00:00]} Bd7 {[%emt 0:02:50]} 27. Ra1 {[%emt 0:00:00]} Rc5 {[%emt 0:01:23] Black is more active.} 28. Nce2 {[%emt 0:00:00]} (28. fxe6 $17 {keeps fighting.} fxe6 29. g6) 28... exf5 $19 {[%emt 0:02:09]} 29. Nd4 {[%emt 0:00:00]} Nec4+ {[%emt 0:01:46]} 30. Bxc4 {[%emt 0:00:00]} (30. Kc1 $142) 30... Nxc4+ {[%emt 0:00:16]} 31. Kd3 {[%emt 0:00:00]} fxe4+ {[%emt 0:00:12] Black is clearly winning.} 32. Kxe4 {[%emt 0:00:00]} (32. Ke2 $142) 32... Re8+ {[%emt 0:00:30]} 33. Kf3 {[%emt 0:00:00]} Nd2+ {[%emt 0:00:07] Weighted Error Value: White=0.36/Black=0.05 (flawless) .  Mistake:       	White=5     	---        Inaccurate:     	White=2     	Black=1      OK:         	White=8     	Black=11     Best:        	---       	Black=1      Strong:       	White=1     	---} 0-1